bitfinex/quotes_ETHUSD_20220310
["timestamp","ask_amount","ask_price","bid_price","bid_amount"]
[1646889224340,12.34782086,2600.0,2599.9,4063.10432252]
[1646889224543,12.34782086,2600.0,2599.9,4057.32087252]
[1646889224989,12.34782086,2600.0,2599.9,4057.33505852]
[1646889224990,8.67174469,2600.0,2599.9,4057.33505852]
[1646889225188,8.67174469,2600.0,2599.9,4051.55127852]
[1646889225592,8.67174469,2600.0,2599.9,4043.49800677]
[1646889225986,8.67174469,2600.0,2599.9,4042.29737852]
[1646889225987,4.53658379,2600.0,2599.9,4042.29737852]
[1646889226190,3.64694833,2600.0,2599.9,4036.51594852]
[1646889226590,3.64694833,2600.0,2599.9,4028.37111252]
[1646889226991,3.64694833,2600.0,2599.9,4029.45174834]
[1646889227192,3.64694833,2600.0,2599.9,4023.66913834]
[1646889227592,3.94694833,2600.0,2599.9,4017.88619834]
[1646889227893,3.94694833,2600.0,2599.9,4017.87619834]
[1646889228096,3.94694833,2600.0,2599.9,4016.91238834]
[1646889228097,3.64694833,2600.0,2599.9,4016.91238834]
[1646889228296,3.64694833,2600.0,2599.9,4010.04925252]
[1646889228735,5.57446833,2600.0,2599.9,4004.26670252]
[1646889228939,5.57446833,2600.0,2599.9,4004.65130252]
[1646889229136,3.64694833,2600.0,2599.9,4003.68749252]
[1646889229341,2.951,2600.0,2599.9,3997.90482252]
[1646889229638,3.396,2600.0,2599.9,3997.90482252]
[1646889229935,5.32353,2600.0,2599.9,3992.12226252]
[1646889230136,3.396,2600.0,2599.9,3991.15845252]
[1646889230337,3.396,2600.0,2599.9,3984.99094252]
[1646889230539,7.231,2600.0,2599.9,3984.99094252]
[1646889230740,7.231,2600.0,2599.9,3976.31528252]
[1646889231337,7.231,2600.0,2599.9,3970.53170252]
[1646889231736,7.231,2600.0,2599.9,2970.53170252]
[1646889231938,7.231,2600.0,2599.9,2964.74822252]
[1646889232483,11.08684,2600.0,2599.9,2956.07295252]
[1646889233084,11.08684,2600.0,2599.9,2950.28940252]
[1646889233585,11.08684,2600.0,2599.9,2941.61396252]
[1646889234184,11.08684,2600.0,2599.9,2935.83057252]
[1646889234784,11.08684,2600.0,2599.9,2928.50465887]
[1646889235185,11.08684,2600.0,2599.9,2922.72127887]
[1646889235385,11.08684,2600.0,2599.9,2919.82942887]
[1646889235785,11.08684,2600.0,2599.9,2914.04579887]
[1646889236238,11.08684,2600.0,2599.9,2908.26212887]
[1646889236839,11.08684,2600.0,2599.9,2902.47862887]
[1646889237442,11.08684,2600.0,2599.9,2893.80307887]
[1646889238043,11.08684,2600.0,2599.9,2888.01966887]
[1646889238240,11.08684,2600.0,2599.9,2888.97661547]
[1646889238442,11.08684,2600.0,2599.9,2888.01966887]
[1646889238643,11.08684,2600.0,2599.9,2882.23628887]
[1646889239342,11.08684,2600.0,2599.9,2875.48902887]
[1646889239542,11.08684,2600.0,2599.9,2873.56112887]
[1646889239742,11.08684,2600.0,2599.9,2867.77776887]
[1646889240181,11.08684,2600.0,2599.9,2861.99460887]
[1646889240384,11.08684,2600.0,2599.9,2859.10282887]
[1646889240786,11.08684,2600.0,2599.9,2853.31971887]
[1646889240986,11.08684,2600.0,2599.9,3853.31971887]
[1646889241386,11.08684,2600.0,2599.9,3847.53659887]
[1646889241786,11.08684,2600.0,2599.9,3838.86249887]
[1646889242187,9.78684,2600.0,2599.9,3838.86249887]
[1646889242389,9.78684,2600.0,2599.9,3833.08021887]
[1646889242988,9.78684,2600.0,2599.9,3826.33387887]
[1646889243388,5.01212572,2600.0,2599.9,3820.93716887]
[1646889243649,4.52606661,2600.0,2599.9,3820.93716887]
[1646889243836,4.52606661,2600.0,2599.9,3815.15611887]
[1646889244236,4.52606661,2600.0,2599.9,3814.15611887]
[1646889244436,4.52606661,2600.0,2599.9,3808.39389987]
[1646889244936,4.52606661,2600.0,2599.9,3802.61248987]
[1646889245135,4.52606661,2600.0,2599.9,4802.61248987]
[1646889245436,4.52606661,2600.0,2599.9,4796.83069987]
[1646889246036,4.52606661,2600.0,2599.9,4791.04930987]
[1646889246441,4.52606661,2600.0,2599.9,4785.26857987]
[1646889246638,5.52606661,2600.0,2599.9,4785.26857987]
[1646889247042,5.52606661,2600.0,2599.9,4779.48755987]
[1646889247482,5.82606661,2600.0,2599.9,4773.70673987]
[1646889247686,0.67022661,2600.0,2599.9,4776.70673987]
[1646889248084,0.67022661,2600.0,2599.9,4770.92625987]
[1646889248685,0.67022661,2600.0,2599.9,5770.92625987]
[1646889249089,1.151,2600.0,2599.9,5770.92625987]
[1646889249488,1.151,2600.0,2599.9,5767.92625987]
[1646889249687,1.151,2600.0,2599.9,5762.12653887]
[1646889249988,1.596,2600.0,2599.9,5762.12653887]
[1646889250188,1.596,2600.0,2599.9,5755.96097887]
[1646889250587,1.896,2600.0,2599.9,5755.96097887]
[1646889250788,1.596,2600.0,2599.9,5753.17989887]
[1646889250992,1.596,2600.0,2599.9,5753.19404087]
[1646889251242,1.596,2600.0,2599.9,5753.57864087]
[1646889251644,1.596,2600.0,2599.9,5754.6582934]
[1646889251942,1.151,2600.0,2599.9,5754.67102551]
[1646889252742,1.151,2600.0,2599.9,5753.59137298]
[1646889253350,1.451,2600.0,2599.9,6753.59137298]
[1646889254248,0.18755,2600.0,2599.9,6753.59137298]
[1646889254445,1.151,2600.0,2599.9,6753.59137298]
[1646889254644,1.151,2600.7,2600.0,0.3846]
[1646889254898,1.151,2600.7,2600.6,3.41257825]
[1646889255099,1.151,2600.7,2600.6,3.98269457]
[1646889255399,1.151,2600.7,2600.6,10.29844143]
[1646889255598,1.151,2600.7,2600.6,10.18962518]
[1646889255998,0.0001,2600.7,2600.6,3.87387832]
[1646889256204,1.151,2600.7,2600.6,10.18962518]
[1646889257000,1.151,2600.9,2600.7,1.30991783]
[1646889257201,1.151,2600.9,2600.8,9.93964628]
[1646889257401,1.151,2601.0,2600.8,9.96376728]
[1646889257600,1.151,2601.0,2600.9,6.46571596]
[1646889258200,1.151,2601.0,2600.9,7.46571596]
[1646889258400,2.41368,2601.0,2600.9,7.46571596]
[1646889260439,1.151,2601.0,2600.9,7.46571596]
[1646889261641,1.151,2601.0,2600.9,0.3846]
[1646889261843,1.24119082,2601.0,2600.8,0.47393032]
[1646889262045,0.07130901,2600.9,2600.8,0.47393032]
[1646889262241,2.63031901,2600.9,2600.8,0.47393032]
[1646889262688,2.55901,2600.9,2600.8,3.48825432]
[1646889262887,2.11401,2600.9,2600.8,3.48825432]
[1646889263086,2.11401,2600.9,2600.8,9.56937028]
[1646889263489,2.11401,2600.9,2600.8,3.48825432]
[1646889263888,2.11401,2600.9,2600.6,0.05388712]
[1646889264088,2.11401,2600.9,2600.5,0.014001]
[1646889264490,2.11401,2600.9,2600.3,0.42928268]
[1646889264693,1.151,2600.6,2600.3,0.42928268]
[1646889264888,1.151,2600.6,2600.3,0.3846]
[1646889265089,1.151,2600.4,2600.2,8.00670596]
[1646889265288,1.151,2600.4,2600.3,6.08111596]
[1646889265688,1.151,2600.4,2600.3,1.22743111]
[1646889265891,3.07684,2600.4,2600.3,1.22743111]
[1646889266336,4.07684,2600.4,2600.1,2.31023]
[1646889266535,3.07684,2600.4,2600.1,1.92563]
[1646889266736,3.07684,2600.4,2600.0,6.12827457]
[1646889266737,1.151,2600.3,2600.0,6.12827457]
[1646889267138,1.151,2600.3,2599.9,7749.99438255]
[1646889267339,1.151,2600.3,2599.9,7750.85941619]
[1646889267737,1.151,2600.3,2599.9,7750.47481619]
[1646889268138,1.151,2600.3,2600.0,5.97920762]
[1646889268439,1.151,2600.1,2599.9,7750.47481619]
[1646889269137,1.151,2600.1,2599.9,7752.40059619]
[1646889269338,1.151,2600.1,2600.0,5.97920762]
[1646889270785,1.151,2600.1,2599.9,7752.40059619]
[1646889270984,1.151,2600.1,2600.0,5.97920762]
[1646889271190,1.151,2600.1,2599.9,7752.40059619]
[1646889271389,1.151,2600.1,2600.0,5.97920762]
[1646889274740,1.151,2600.1,2599.9,7754.40058619]
[1646889274941,1.151,2600.1,2600.0,2.0]
[1646889275341,1.22955101,2600.1,2600.0,2.0]
[1646889275939,1.22955101,2600.1,2599.9,7751.53555255]
[1646889276139,0.08111812,2600.0,2599.9,7751.53555255]
[1646889276543,1.23211812,2600.0,2599.9,7752.72146383]
[1646889276745,1.151,2600.0,2599.9,7752.72146383]
[1646889277984,1.151,2600.0,2599.9,7754.72146383]
[1646889278585,1.14777642,2600.0,2599.9,7754.72146383]
[1646889279186,1.14777642,2600.0,2599.9,7753.53555255]
[1646889279386,1.14777642,2600.0,2599.9,7751.60978255]
[1646889279586,2.00405749,2600.2,2599.9,7751.60978255]
[1646889279587,0.07809749,2600.2,2599.9,7751.60978255]
[1646889279886,1.14777642,2600.0,2599.9,7751.60978255]
[1646889280086,1.14777642,2600.0,2599.9,7749.60978255]
[1646889280289,1.14777642,2600.0,2599.9,7750.74854394]
[1646889280688,1.14777642,2600.4,2599.9,7750.74854394]
[1646889280888,0.08729749,2600.3,2600.0,1.92556]
[1646889282640,1.14777642,2600.1,2600.0,1.92556]
[1646889282842,1.14777642,2600.1,2600.0,7.90476762]
[1646889283040,2.92589,2600.2,2600.0,7.90476762]
[1646889283041,1.14777642,2600.2,2600.0,7.90476762]
[1646889283239,1.14777642,2600.2,2600.1,5.97920762]
[1646889283641,1.14777642,2600.2,2600.0,1.92556]
[1646889284041,3.27354,2600.7,2600.1,5.97920762]
[1646889284042,1.14777642,2600.6,2600.1,5.97920762]
[1646889284644,1.14777642,2600.6,2600.2,0.96277]
[1646889284887,1.14777642,2600.4,2600.2,0.96277]
[1646889285092,1.14777642,2600.3,2600.0,1.92556]
[1646889285288,1.14777642,2600.3,2599.9,7751.60978255]
[1646889285689,1.53237642,2600.3,2599.9,7751.60978255]
[1646889285889,1.53237642,2600.2,2599.9,7750.57283255]
[1646889286491,3.45846642,2600.2,2599.9,7750.57283255]
[1646889287092,4.45846642,2600.2,2599.9,7750.57283255]
[1646889287292,1.14777642,2600.0,2599.9,7750.57283255]
[1646889288738,1.14777642,2600.0,2599.9,7751.63747647]
[1646889289537,1.14777642,2600.8,2599.9,7752.07283255]
[1646889289739,1.14777642,2600.8,2600.0,5.97920762]
[1646889290138,1.14777642,2600.7,2600.1,0.96293]
[1646889290439,1.14777642,2600.2,2600.1,0.96293]
[1646889291039,1.14777642,2600.2,2600.0,5.97920762]
[1646889291242,1.14777642,2600.2,2599.9,7750.57283255]
[1646889291845,1.53237642,2600.2,2599.9,7749.60978255]
[1646889292789,0.07893401,2600.1,2600.0,0.1]
[1646889293191,0.07893401,2600.1,2600.0,6.07920762]
[1646889293192,2.18961043,2600.1,2600.0,6.07920762]
[1646889294989,2.18961043,2600.1,2600.0,0.1]
[1646889298245,2.18961043,2600.1,2600.0,6.07920762]
[1646889298642,2.18961043,2600.1,2600.0,0.1]
[1646889300990,2.18961043,2600.1,2600.0,0.09899461]
[1646889302690,2.57421043,2600.1,2600.0,0.09899461]
[1646889302893,2.57421043,2600.1,2599.9,7748.70877716]
[1646889302894,3.57421043,2600.1,2599.9,7748.70877716]
[1646889303092,0.08291126,2600.0,2599.9,7748.70877716]
[1646889303292,2.06028768,2600.0,2599.9,7653.94877716]
[1646889303495,3.98688768,2600.0,2599.9,7488.5162654]
[1646889303741,3.98688768,2600.0,2599.9,7343.9625154]
[1646889304340,4.98688768,2600.0,2599.9,7343.9625154]
[1646889304941,4.98688768,2600.0,2599.9,7342.93548716]
[1646889305341,4.54188768,2600.0,2599.9,7342.93548716]
[1646889305943,4.55226809,2600.0,2599.9,7342.93548716]
[1646889307146,4.55226809,2600.0,2599.9,7337.15635716]
[1646889308989,4.16766809,2600.0,2599.9,7337.15635716]
[1646889309193,1.98665693,2600.0,2599.9,7339.45179463]
[1646889309390,1.98665693,2600.0,2599.9,7341.7472321]
[1646889309589,1.23770352,2600.0,2599.9,7341.7472321]
[1646889310590,1.151,2600.0,2599.9,7341.7472321]
[1646889310793,11.17134,2601.4,2599.9,7343.6727221]
[1646889310794,1.151,2600.4,2599.9,7343.6727221]
[1646889311166,1.151,2600.4,2600.0,6.758852]
[1646889311768,1.151,2600.3,2600.1,1.23669658]
[1646889311969,1.151,2600.3,2600.2,6.758852]
[1646889312368,1.151,2601.0,2600.3,1.98577047]
[1646889312570,1.151,2601.0,2600.5,0.07038078]
[1646889312768,1.151,2601.2,2600.5,0.07038078]
[1646889312968,1.151,2601.2,2600.9,2.0]
[1646889313173,0.06572466,2601.4,2601.0,7.89954045]
[1646889313174,1.21672466,2601.4,2601.0,7.89954045]
[1646889313369,1.151,2601.4,2601.1,1.151]
[1646889313568,1.151,2601.4,2601.3,1.151]
[1646889313768,1.151,2601.4,2601.2,1.151]
[1646889313972,2.11344,2601.4,2601.2,1.151]
[1646889314170,2.11344,2601.4,2601.3,7.909852]
[1646889314571,1.151,2601.6,2601.3,7.909852]
[1646889314990,1.151,2601.6,2601.5,3.151]
[1646889315591,1.151,2601.8,2601.5,3.151]
[1646889315792,1.151,2601.8,2601.6,1.151]
[1646889316797,1.151,2601.8,2601.7,1.151]
[1646889317996,1.15014469,2601.8,2601.7,1.151]
[1646889318498,1.15014469,2601.8,2601.7,2.651]
[1646889318940,1.15014469,2601.8,2601.7,3.68635984]
[1646889319539,1.15014469,2601.8,2601.7,3.69381784]
[1646889319740,1.15014469,2601.8,2601.7,5.98925531]
[1646889319939,1.15014469,2601.8,2601.7,10.28469278]
[1646889320139,1.9858845,2602.5,2601.7,10.28469278]
[1646889320140,1.151,2602.4,2601.7,10.28469278]
[1646889320340,1.151,2602.4,2601.9,1.151]
[1646889320541,1.151,2602.4,2602.3,2.651]
[1646889320944,1.151,2602.4,2602.3,12.45513024]
[1646889321246,1.151,2602.8,2602.3,5.8412]
[1646889322043,1.151,2602.8,2602.3,3.8412]
[1646889322894,1.151,2602.8,2602.3,5.8412]
[1646889322895,0.05514276,2602.7,2602.3,5.8412]
[1646889323099,3.07506,2602.6,2602.5,1.151]
[1646889323290,4.07506,2602.6,2602.5,1.151]
[1646889324393,2.151,2602.6,2602.5,1.151]
[1646889324792,1.151,2602.6,2602.5,1.151]
[1646889325191,1.151,2602.6,2602.5,5.74187494]
[1646889325992,1.151,2602.6,2602.5,13.38283565]
[1646889326448,1.151,2602.6,2602.5,8.31181833]
[1646889327047,1.151,2603.1,2602.5,10.31181833]
[1646889327246,1.151,2603.1,2602.7,1.151]
[1646889327447,3.07461,2603.1,2603.0,2.651]
[1646889328048,4.07461,2603.1,2603.0,2.651]
[1646889328446,4.07461,2603.1,2603.0,1.151]
[1646889329247,4.14082432,2603.1,2603.0,1.151]
[1646889329458,4.14082432,2603.1,2602.8,1.151]
[1646889329649,0.06126683,2603.0,2602.8,1.151]
[1646889329890,0.06126683,2603.0,2602.5,10.01429494]
[1646889329891,1.151,2602.8,2602.6,1.151]
[1646889330094,2.18498035,2602.7,2602.6,1.151]
[1646889330491,2.18498035,2602.7,2602.6,5.74187494]
[1646889330690,2.18498035,2602.7,2602.6,5.69967819]
[1646889331898,2.18498035,2602.7,2602.6,7.69967819]
[1646889332099,2.113,2602.7,2602.6,7.69967819]
[1646889332596,2.113,2602.7,2602.6,14.22634041]
[1646889332597,1.151,2602.7,2602.6,14.22634041]
[1646889332995,1.151,2602.7,2602.6,7.69967819]
[1646889333395,1.151,2602.7,2602.6,9.19967819]
[1646889333650,2.11283,2602.7,2602.6,9.19967819]
[1646889334040,2.11283,2602.7,2602.6,7.19967819]
[1646889334439,2.11283,2602.7,2602.6,5.69967819]
[1646889334841,1.151,2602.7,2602.6,5.69967819]
[1646889335440,1.151,2602.7,2602.6,7.19967819]
[1646889335942,0.00219059,2603.9,2602.7,0.54989182]
[1646889336142,0.00219059,2603.9,2602.9,0.08423318]
[1646889336143,1.151,2603.5,2602.9,0.08423318]
[1646889336351,1.15369059,2604.4,2603.2,1.18656042]
[1646889336545,1.15369059,2604.4,2604.0,1.10880325]
[1646889336546,0.81105939,2604.4,2604.0,1.10880325]
[1646889336746,1.1515,2605.2,2604.1,0.06846032]
[1646889336747,3.1688,2605.0,2604.1,0.06846032]
[1646889336945,3.1688,2605.0,2604.3,0.06678803]
[1646889337146,3.1688,2605.0,2604.9,0.029168]
[1646889337692,1.1515,2605.2,2604.9,0.029168]
[1646889337891,1.1515,2605.2,2605.1,0.029168]
[1646889338093,157.0291,2605.1,2604.9,6.8e-05]
[1646889338292,6.91126222,2605.0,2604.7,1.10880325]
[1646889338492,6.91126222,2605.0,2604.6,1.5]
[1646889338493,1.34591,2604.9,2604.6,1.10880325]
[1646889338692,0.96131,2604.9,2604.6,1.10880325]
[1646889339494,0.96131,2604.9,2604.4,2.60880325]
[1646889339894,0.4735,2604.8,2604.4,2.60880325]
[1646889340095,0.4735,2604.8,2604.7,1.10880325]
[1646889340494,0.4735,2604.8,2604.7,2.60880325]
[1646889340695,0.4735,2604.8,2604.7,2.67534809]
[1646889340894,0.0445,2604.8,2604.7,2.67534809]
[1646889341149,0.99011,2605.1,2604.7,4.67534809]
[1646889341554,0.99011,2605.1,2604.7,4.60880325]
[1646889341951,0.99011,2605.1,2605.0,1.10880325]
[1646889342753,3.99010999,2605.1,2605.0,1.10880325]
[1646889343155,1.99011,2605.1,2605.0,1.10880325]
[1646889343353,0.99011,2605.1,2605.0,1.10880325]
[1646889345291,0.99011,2605.1,2604.9,4.91095884]
[1646889345292,109.0,2605.0,2604.9,4.91095884]
[1646889345691,109.688,2605.0,2604.9,4.91095884]
[1646889345889,109.315,2605.0,2604.9,4.91095884]
[1646889346092,109.081,2605.0,2604.9,4.91095884]
[1646889346295,0.844,2605.0,2604.9,4.91095884]
[1646889346494,0.5905,2605.0,2604.9,4.91095884]
[1646889346695,3.96103045,2605.1,2604.9,4.91095884]
[1646889346895,3.96103045,2605.1,2604.9,2.61552137]
[1646889347095,3.96103045,2605.1,2605.0,0.3200839]
[1646889347398,3.96103045,2605.1,2605.0,2.61552137]
[1646889348493,3.96103045,2605.1,2604.8,2.29543747]
[1646889348494,0.3846,2604.9,2604.8,2.29543747]
[1646889348757,2.99999999,2604.9,2604.8,2.29543747]
[1646889349258,3.99999999,2604.9,2604.8,2.29543747]
[1646889349456,2.99999999,2604.9,2604.8,2.29543747]
[1646889349657,1.7954,2604.8,2603.8,2.46133]
[1646889349857,1.7954,2604.8,2603.8,1.5]
[1646889349858,1.34604,2604.7,2603.8,1.5]
[1646889350063,2.99999999,2604.2,2604.0,2.0]
[1646889350255,0.7035,2604.1,2604.0,2.0]
[1646889350861,1.66505,2604.1,2604.0,2.0]
[1646889351059,0.7035,2604.1,2603.8,0.96133]
[1646889351261,0.7035,2604.5,2603.8,0.96133]
[1646889351463,0.7035,2604.5,2603.8,2.46133]
[1646889351962,0.7035,2604.5,2603.9,2.0]
[1646889352166,0.7035,2604.2,2603.9,2.0]
[1646889352989,0.7035,2604.2,2603.8,0.96133]
[1646889353490,0.7035,2604.2,2603.9,1.5]
[1646889354090,0.7035,2604.2,2604.0,1.02964072]
[1646889354490,0.7035,2604.2,2604.1,1.5781757]
[1646889354689,0.7035,2604.2,2604.1,7.85887596]
[1646889355890,0.7035,2604.2,2604.1,9.85887596]
[1646889356148,0.7035,2604.2,2604.1,3.5781757]
[1646889356945,0.4535,2604.2,2604.1,3.5781757]
[1646889357145,0.4535,2604.2,2604.1,9.8300446]
[1646889357645,0.4535,2604.2,2604.1,3.5781757]
[1646889359646,0.4535,2604.2,2604.1,9.8300446]
[1646889359895,19.46673227,2605.6,2604.6,0.96092]
[1646889359896,0.05687451,2605.4,2604.6,0.96092]
[1646889360095,0.05687451,2605.4,2604.6,7.2127889]
[1646889360297,0.05687451,2605.4,2604.6,0.96092]
[1646889360893,0.05687451,2605.4,2604.7,0.07333082]
[1646889361097,0.96097,2605.3,2604.9,2.0]
[1646889361301,0.05687451,2605.4,2604.9,2.0]
[1646889361499,0.05687451,2605.4,2605.1,1.5]
[1646889361898,2.99999999,2605.5,2605.1,1.5]
[1646889362500,3.99999999,2605.5,2605.2,1.5]
[1646889362702,1.0,2605.5,2605.3,6.22521124]
[1646889363006,1.0,2605.9,2605.4,6.35906708]
[1646889363202,1.0,2605.9,2605.5,0.08462614]
[1646889363402,1.0,2605.9,2605.8,1.5]
[1646889364043,1.0,2605.9,2605.8,3.5]
[1646889366544,1.0,2605.9,2605.8,9.72521124]
[1646889367392,1.0,2605.9,2605.8,9.79221186]
[1646889367993,1.0,2605.9,2605.8,3.56700062]
[1646889368196,1.0,2605.9,2605.8,9.79221186]
[1646889369195,1.0,2605.9,2605.8,10.23721186]
[1646889369395,1.0,2605.9,2605.8,4.01200062]
[1646889369995,1.0,2605.9,2605.8,3.56700062]
[1646889370799,1.0,2605.9,2605.8,4.63033038]
[1646889370996,1.0,2605.9,2605.8,3.56700062]
[1646889373747,1.0,2605.9,2605.8,10.23721186]
[1646889375190,0.014001,2606.9,2606.2,1.92056]
[1646889375392,0.02957492,2607.0,2606.4,0.08264965]
[1646889375592,0.04490545,2606.8,2606.4,0.08264965]
[1646889375793,2.99999999,2606.5,2606.2,1.92056]
[1646889376197,0.04263176,2606.4,2606.2,1.92056]
[1646889376398,0.04263176,2606.4,2606.3,1.5]
[1646889376596,3.01454099,2606.8,2606.3,1.5]
[1646889376797,2.99999999,2606.5,2606.3,1.5]
[1646889376996,0.04433703,2606.7,2606.3,1.5]
[1646889377197,2.99999999,2606.5,2606.3,1.5]
[1646889377697,1.151,2606.2,2605.9,1.92102]
[1646889377897,157.3846,2606.3,2605.7,0.96477481]
[1646889377898,4.43559999,2606.0,2605.7,0.96477481]
[1646889378097,4.05099999,2605.8,2605.7,0.00405481]
[1646889378298,5.05099999,2605.8,2605.7,0.00405481]
[1646889379151,5.43559999,2605.8,2605.7,0.00405481]
[1646889380148,5.05099999,2605.8,2605.7,0.00405481]
[1646889380349,5.05099999,2605.8,2605.5,0.96077]
[1646889380951,5.05099999,2605.8,2605.6,2.0]
[1646889381151,2.151,2605.8,2605.6,2.0]
[1646889381353,4.05099999,2605.7,2605.6,2.0]
[1646889381954,1.151,2605.6,2605.5,2.96077]
[1646889382389,1.151,2605.6,2605.5,2.0]
[1646889382990,1.151,2605.6,2605.4,2.0]
[1646889385090,1.151,2605.6,2605.5,0.00405468]
[1646889388057,1.151,2605.6,2605.5,2.00405468]
[1646889389162,1.5356,2605.4,2604.8,0.96103]
[1646889389357,3.86400099,2605.7,2604.8,0.96103]
[1646889389358,4.00099999,2604.9,2604.8,0.96103]
[1646889389559,4.38559999,2604.9,2604.5,2.88259]
[1646889389758,1.151,2604.6,2604.3,0.907]
[1646889390396,1.151,2604.6,2604.4,0.96113]
[1646889390792,2.84999999,2604.8,2604.4,0.96113]
[1646889390793,1.151,2604.5,2604.4,0.96113]
[1646889391802,4.00099999,2604.8,2604.4,0.96113]
[1646889392098,4.00099999,2604.8,2604.5,2.90968826]
[1646889392297,2.151,2604.8,2604.5,2.90968826]
[1646889392498,1.151,2604.8,2604.5,2.90968826]
[1646889392699,1.151,2604.6,2604.5,1.9221]
[1646889392999,1.151,2604.9,2604.5,1.9221]
[1646889393197,1.151,2604.6,2604.5,1.9221]
[1646889393959,1.151,2604.9,2604.5,1.9221]
[1646889394159,2.84999999,2605.0,2603.8,4.93061721]
[1646889394160,1.151,2604.5,2603.8,4.93061721]
[1646889394365,4.00099999,2604.0,2603.8,4.93061721]
[1646889394760,1.151,2604.0,2603.8,4.93061721]
[1646889394960,1.151,2604.2,2603.9,6.17724374]
[1646889395159,1.151,2604.2,2603.9,0.98781623]
[1646889395962,1.151,2604.0,2603.9,0.98781623]
[1646889396162,4.00099999,2604.4,2603.9,0.98781623]
[1646889396360,1.151,2604.4,2603.9,0.98781623]
[1646889396561,2.151,2604.4,2603.9,0.98781623]
[1646889396760,1.151,2604.4,2603.9,0.98781623]
[1646889396964,1.151,2604.4,2603.9,1.94899623]
[1646889397162,1.151,2604.4,2604.3,0.89180929]
[1646889397695,1.151,2604.4,2603.9,6.18124685]
[1646889397696,1.151,2604.4,2603.9,0.07926195]
[1646889398095,1.151,2604.4,2604.1,0.9611]
[1646889398297,1.151,2604.3,2604.1,0.9611]
[1646889398498,1.151,2604.3,2604.2,1.18503347]
[1646889398998,1.151,2604.3,2604.2,7.28701837]
[1646889399197,0.00218434,2605.2,2604.4,0.06687389]
[1646889399398,2.85218433,2605.3,2604.5,0.06673314]
[1646889399603,0.014001,2605.4,2604.6,0.08432611]
[1646889400002,0.05432065,2605.3,2604.5,1.63404]
[1646889400202,0.014001,2605.4,2604.7,1.01750934]
[1646889400903,0.014001,2605.4,2604.7,1.97824934]
[1646889401751,0.014001,2605.4,2604.7,8.06128074]
[1646889402154,0.014001,2605.4,2605.1,0.94206763]
[1646889402352,0.014001,2605.4,2605.1,0.96071]
[1646889402556,2.84999999,2605.4,2605.1,0.96071]
[1646889402752,2.84999999,2605.4,2604.9,1.92142]
[1646889402753,0.04679652,2605.3,2604.9,1.92142]
[1646889403451,0.04679652,2605.3,2604.9,2.93496994]
[1646889404991,0.04679652,2605.3,2605.2,0.00354632]
[1646889406897,6.15334651,2605.4,2605.2,0.00354632]
[1646889407096,2.84679651,2605.3,2605.2,0.00354632]
[1646889407299,4.98709651,2605.3,2605.2,0.00354632]
[1646889408197,5.37169651,2605.3,2605.2,0.00354632]
[1646889409545,0.3846,2604.8,2603.8,6.0830314]
[1646889409745,0.3846,2604.8,2603.6,1.92242]
[1646889409746,2.84679651,2604.1,2603.6,1.92242]
[1646889410146,3.84679651,2604.1,2603.6,1.92242]
[1646889410348,2.84679651,2604.1,2603.7,1.17310989]
[1646889410546,0.02006634,2604.7,2603.8,6.0830314]
[1646889410547,2.84679651,2604.5,2603.8,6.0830314]
[1646889410748,1.02006634,2604.7,2604.2,0.92493566]
[1646889410749,0.017882,2604.7,2604.2,0.92493566]
[1646889410948,2.3431,2604.8,2604.2,0.92493566]
[1646889411147,5.18989651,2604.8,2604.2,0.92493566]
[1646889411350,0.96115,2604.6,2604.2,0.92493566]
[1646889411953,2.3431,2604.8,2604.6,1.07326595]
[1646889412153,7.2115,2604.9,2604.6,1.07326595]
[1646889412154,2.9659,2604.9,2604.6,2.03418595]
[1646889413205,2.9659,2604.9,2604.6,2.99497785]
[1646889413806,2.84679651,2605.2,2604.6,2.99497785]
[1646889414006,1.974791,2605.5,2604.7,0.08240589]
[1646889414209,1.974791,2605.5,2604.8,0.96085]
[1646889414210,0.974791,2605.5,2604.8,0.96085]
[1646889414406,2.84679651,2605.2,2605.0,1.02556291]
[1646889414606,2.84679651,2605.4,2604.8,0.96085]
[1646889414805,3.84679651,2605.4,2604.9,0.07235746]
[1646889415209,3.84679651,2605.4,2604.8,0.9639518]
[1646889415210,2.84679651,2605.2,2604.8,0.9639518]
[1646889415807,2.84679651,2605.2,2604.8,2.13310169]
[1646889417258,1.0,2605.4,2604.8,0.9639518]
[1646889417259,3.84679651,2605.4,2604.8,0.9639518]
[1646889417457,2.84679651,2605.4,2604.8,0.9639518]
[1646889417658,3.84679651,2605.4,2604.8,0.9139518]
[1646889418458,3.84679651,2605.4,2605.0,0.89245201]
[1646889418659,3.84679651,2605.4,2605.0,1.85321201]
[1646889419260,0.974791,2605.5,2605.0,1.85321201]
[1646889419461,4.2393,2605.6,2605.0,1.85321201]
[1646889419893,4.2393,2605.6,2605.4,1.0641794]
[1646889420105,1.1455,2605.6,2605.4,1.0641794]
[1646889420296,1.1455,2605.6,2605.2,0.08524272]
[1646889420499,1.1455,2605.6,2605.0,0.96076]
[1646889420500,1.1455,2605.6,2605.0,0.06938082]
[1646889421197,1.165893,2605.6,2605.0,0.06938082]
[1646889421798,1.165893,2605.6,2605.1,0.08692408]
[1646889421999,1.1455,2605.6,2605.4,1.03994546]
[1646889422401,1.1455,2605.6,2605.1,0.07108666]
[1646889423945,1.1455,2605.6,2605.4,0.98596113]
[1646889424146,1.1455,2605.6,2605.1,0.07108666]
[1646889424547,1.1455,2605.6,2605.2,0.07245142]
[1646889424747,1.1455,2605.6,2605.5,0.00290932]
[1646889425145,0.96062,2605.7,2605.5,0.8833193]
[1646889425346,0.96055,2605.9,2605.6,0.06878835]
[1646889425546,0.96055,2605.9,2605.7,0.08494505]
[1646889425947,4.326401,2606.2,2605.7,0.08494505]
[1646889426149,4.326401,2606.2,2605.8,0.08457908]
[1646889426150,4.3124,2606.2,2605.8,0.08457908]
[1646889426351,0.04092648,2606.1,2605.8,0.08457908]
[1646889426550,0.04092648,2606.1,2605.9,0.90237962]
[1646889426750,0.04035806,2606.0,2605.9,0.90237962]
[1646889426950,0.04035806,2606.0,2605.8,0.08457908]
[1646889427795,0.04035806,2606.0,2605.8,7.12797048]
[1646889427992,0.04035806,2606.0,2605.9,7.067725]
[1646889428192,0.04035806,2606.0,2605.9,0.9846936]
[1646889428594,0.04035806,2606.0,2605.9,1.9449499]